[Event "*** Titled Tuesday Blitz"]
[Site "Chess.com"]
[Date "2018.09.04"]
[Round "1"]
[White "Winehouse83"]
[Black "Quiet_Desperation"]
[Result "1-0"]
[WhiteElo "2463"]
[BlackElo "1881"]
[TimeControl "180+2"]
[EndTime "13:38:00 PDT"]
[Termination "Winehouse83 won by resignation"]

1. d4 {[%clk 0:03:00.8]} 1... Nf6 {[%clk 0:02:59.9]} 2. c4 {[%clk 0:02:51]} 2...
e6 {[%clk 0:03:00.9]} 3. Nf3 {[%clk 0:02:51.6]} 3... Bb4+ {[%clk 0:03:01.8]} 4.
Nbd2 {[%clk 0:02:51.6]} 4... b6 {[%clk 0:03:02.7]} 5. a3 {[%clk 0:02:51.9]} 5...
Bxd2+ {[%clk 0:03:03.8]} 6. Qxd2 {[%clk 0:02:53.5]} 6... Bb7 {[%clk 0:03:04]} 7.
g3 {[%clk 0:02:52]} 7... O-O {[%clk 0:03:04.4]} 8. Bg2 {[%clk 0:02:53.2]} 8...
Ne4 {[%clk 0:03:05.7]} 9. Qc2 {[%clk 0:02:53.2]} 9... f5 {[%clk 0:03:06.9]} 10.
O-O {[%clk 0:02:53.9]} 10... a5 {[%clk 0:02:59.9]} 11. Ng5 {[%clk 0:02:49.6]}
11... Nxg5 {[%clk 0:02:52.6]} 12. Bxb7 {[%clk 0:02:48.9]} 12... Ra7 {[%clk
0:02:53.8]} 13. Bg2 {[%clk 0:02:49.6]} 13... Nc6 {[%clk 0:02:46.3]} 14. d5
{[%clk 0:02:44.5]} 14... Nd4 {[%clk 0:02:39.4]} 15. Qd1 {[%clk 0:02:28.4]} 15...
c5 {[%clk 0:02:36.8]} 16. e3 {[%clk 0:02:23.3]} 16... e5 {[%clk 0:02:36.4]} 17.
exd4 {[%clk 0:02:23.8]} 17... cxd4 {[%clk 0:02:35.2]} 18. f4 {[%clk 0:02:18.3]}
18... exf4 {[%clk 0:02:24]} 19. Bxf4 {[%clk 0:02:18.4]} 19... Ne4 {[%clk
0:02:25.3]} 20. Bxe4 {[%clk 0:02:16.4]} 20... fxe4 {[%clk 0:02:25.4]} 21. Qxd4
{[%clk 0:02:18]} 21... Rc7 {[%clk 0:02:22.9]} 1-0

[Event "*** Titled Tuesday Blitz"]
[Site "Chess.com"]
[Date "2018.09.04"]
[Round "1"]
[White "jacky72"]
[Black "335394862"]
[Result "1-0"]
[WhiteElo "2668"]
[BlackElo "2332"]
[TimeControl "180+2"]
[EndTime "13:38:38 PDT"]
[Termination "jacky72 won by resignation"]

1. d4 {[%clk 0:03:01.7]} 1... Nf6 {[%clk 0:03:00.1]} 2. c4 {[%clk 0:03:02.1]}
2... g6 {[%clk 0:03:01.3]} 3. Nc3 {[%clk 0:03:02.8]} 3... c5 {[%clk 0:03:02.1]}
4. d5 {[%clk 0:03:03.6]} 4... Bg7 {[%clk 0:03:03]} 5. e4 {[%clk 0:03:05]} 5...
d6 {[%clk 0:03:04.4]} 6. Bd3 {[%clk 0:03:06.4]} 6... O-O {[%clk 0:03:05.6]} 7.
h3 {[%clk 0:03:08]} 7... e6 {[%clk 0:03:06.3]} 8. Nf3 {[%clk 0:03:09.9]} 8...
exd5 {[%clk 0:03:06.9]} 9. exd5 {[%clk 0:03:11.8]} 9... Re8+ {[%clk 0:03:03.9]}
10. Be3 {[%clk 0:03:13.2]} 10... Nbd7 {[%clk 0:03:04.8]} 11. O-O {[%clk
0:03:14]} 11... Ne5 {[%clk 0:03:04.6]} 12. Nxe5 {[%clk 0:03:14.7]} 12... Rxe5
{[%clk 0:03:06.5]} 13. Qd2 {[%clk 0:03:16.3]} 13... Nd7 {[%clk 0:03:04.1]} 14.
Bf4 {[%clk 0:03:16.7]} 14... a6 {[%clk 0:03:02.8]} 15. Bxe5 {[%clk 0:03:14.2]}
15... Nxe5 {[%clk 0:03:04.7]} 16. Be2 {[%clk 0:03:11.6]} 16... h5 {[%clk
0:03:03.6]} 17. f4 {[%clk 0:03:12.3]} 17... Nd7 {[%clk 0:03:03.4]} 18. f5 {[%clk
0:03:13]} 18... Qh4 {[%clk 0:03:00.3]} 19. fxg6 {[%clk 0:03:12.4]} 19... fxg6
{[%clk 0:03:00.1]} 20. Rf4 {[%clk 0:03:10.2]} 20... Qg3 {[%clk 0:02:55]} 21. Ne4
{[%clk 0:03:08.7]} 21... Bd4+ {[%clk 0:02:52.2]} 22. Kh1 {[%clk 0:03:09.2]}
22... Qe3 {[%clk 0:02:51.1]} 23. Qxe3 {[%clk 0:03:04.1]} 23... Bxe3 {[%clk
0:02:53]} 24. Rf3 {[%clk 0:03:03.8]} 24... Bd4 {[%clk 0:02:54.3]} 25. Nxd6
{[%clk 0:03:04.9]} 25... Ne5 {[%clk 0:02:53.2]} 26. Rff1 {[%clk 0:02:56.6]}
26... Bxb2 {[%clk 0:02:49.2]} 27. Rab1 {[%clk 0:02:57.3]} 27... Bd4 {[%clk
0:02:49.3]} 28. Nxc8 {[%clk 0:02:58.8]} 28... Rxc8 {[%clk 0:02:49.4]} 29. Rxb7
{[%clk 0:03:00.1]} 29... a5 {[%clk 0:02:46.4]} 30. d6 {[%clk 0:03:01.1]} 30...
Rd8 {[%clk 0:02:47.9]} 31. Rb6 {[%clk 0:02:59.5]} 31... Nf7 {[%clk 0:02:44.8]}
32. Bf3 {[%clk 0:02:56.2]} 32... Nxd6 {[%clk 0:02:41.5]} 33. Bd5+ {[%clk
0:02:56.5]} 33... Kg7 {[%clk 0:02:43.1]} 34. Ra6 {[%clk 0:02:57.2]} 34... Bc3
{[%clk 0:02:39.5]} 35. Ra7+ {[%clk 0:02:58.3]} 35... Kh6 {[%clk 0:02:40.7]} 36.
g4 {[%clk 0:02:59.7]} 36... hxg4 {[%clk 0:02:41.3]} 37. hxg4 {[%clk 0:03:01.6]}
37... Kg5 {[%clk 0:02:42.9]} 38. Kg2 {[%clk 0:02:59.2]} 38... Re8 {[%clk
0:02:42.6]} 39. Rd7 {[%clk 0:02:58.6]} 39... Be5 {[%clk 0:02:36.9]} 40. Re1
{[%clk 0:02:57.4]} 40... Kf6 {[%clk 0:02:28.9]} 41. Rxd6+ {[%clk 0:02:57.5]} 1-0

[Event "*** Titled Tuesday Blitz"]
[Site "Chess.com"]
[Date "2018.09.04"]
[Round "1"]
[White "NateSolon"]
[Black "Eliwood44"]
[Result "1-0"]
[WhiteElo "2513"]
[BlackElo "2169"]
[TimeControl "180+2"]
[EndTime "13:39:11 PDT"]
[Termination "NateSolon won by resignation"]

1. d4 {[%clk 0:02:59]} 1... Nf6 {[%clk 0:02:58]} 2. Bg5 {[%clk 0:02:59.1]} 2...
Ne4 {[%clk 0:02:57.3]} 3. Bf4 {[%clk 0:02:59]} 3... d5 {[%clk 0:02:58.4]} 4. e3
{[%clk 0:02:59.4]} 4... c5 {[%clk 0:02:58.1]} 5. Bd3 {[%clk 0:03:00.2]} 5... Nf6
{[%clk 0:02:58]} 6. c3 {[%clk 0:02:59.1]} 6... Nc6 {[%clk 0:02:58.2]} 7. Nf3
{[%clk 0:02:55.8]} 7... e6 {[%clk 0:02:59.3]} 8. Nbd2 {[%clk 0:02:54.9]} 8...
Bd6 {[%clk 0:03:00.2]} 9. Bg3 {[%clk 0:02:56.1]} 9... O-O {[%clk 0:02:59.1]} 10.
Qe2 {[%clk 0:02:54.3]} 10... b6 {[%clk 0:02:57.9]} 11. e4 {[%clk 0:02:54.3]}
11... dxe4 {[%clk 0:02:51.5]} 12. Nxe4 {[%clk 0:02:54.7]} 12... Bxg3 {[%clk
0:02:46.6]} 13. hxg3 {[%clk 0:02:49.1]} 13... g6 {[%clk 0:02:47.4]} 14. dxc5
{[%clk 0:02:36]} 14... Bb7 {[%clk 0:02:35]} 15. O-O-O {[%clk 0:02:25.9]} 15...
Nxe4 {[%clk 0:02:17.1]} 16. Bxe4 {[%clk 0:02:26.7]} 16... Qf6 {[%clk 0:02:16.7]}
17. Rd7 {[%clk 0:02:23.2]} 17... Rab8 {[%clk 0:02:12.4]} 18. cxb6 {[%clk
0:02:17.4]} 18... axb6 {[%clk 0:02:12.9]} 19. Rxb7 {[%clk 0:02:15.2]} 19... Rxb7
{[%clk 0:02:14]} 20. Bxc6 {[%clk 0:02:15.8]} 20... Rc7 {[%clk 0:02:15.6]} 21.
Be4 {[%clk 0:01:59.9]} 21... Rfc8 {[%clk 0:02:13.4]} 22. Kb1 {[%clk 0:01:59.1]}
22... Rc4 {[%clk 0:02:10.8]} 23. Bd3 {[%clk 0:01:54.5]} 23... R4c7 {[%clk
0:02:10.3]} 24. Qe3 {[%clk 0:01:52]} 24... Ra7 {[%clk 0:02:09.2]} 25. Qh6 {[%clk
0:01:46.4]} 25... Rca8 {[%clk 0:02:09.6]} 26. Qxh7+ {[%clk 0:01:44.9]} 26... Kf8
{[%clk 0:02:10.1]} 27. Qh8+ {[%clk 0:01:46]} 27... Ke7 {[%clk 0:02:11.6]} 28.
Qxf6+ {[%clk 0:01:45.9]} 28... Kxf6 {[%clk 0:02:13.5]} 29. a3 {[%clk 0:01:45.9]}
1-0

[Event "*** Titled Tuesday Blitz"]
[Site "Chess.com"]
[Date "2018.09.04"]
[Round "1"]
[White "GMBenjaminBok"]
[Black "jeetjain"]
[Result "1-0"]
[WhiteElo "2632"]
[BlackElo "2300"]
[TimeControl "180+2"]
[EndTime "13:39:16 PDT"]
[Termination "GMBenjaminBok won by resignation"]

1. c4 {[%clk 0:03:01.9]} 1... e6 {[%clk 0:02:58]} 2. Nc3 {[%clk 0:03:02.2]} 2...
d5 {[%clk 0:02:58.8]} 3. d4 {[%clk 0:03:03.3]} 3... Be7 {[%clk 0:02:59.4]} 4.
cxd5 {[%clk 0:03:04]} 4... exd5 {[%clk 0:03:00.4]} 5. Bf4 {[%clk 0:03:05.4]}
5... Nf6 {[%clk 0:03:01.1]} 6. e3 {[%clk 0:03:06.6]} 6... O-O {[%clk 0:03:00.7]}
7. Bd3 {[%clk 0:03:07.5]} 7... Nbd7 {[%clk 0:02:54.5]} 8. Nf3 {[%clk 0:03:04.9]}
8... c5 {[%clk 0:02:54.6]} 9. O-O {[%clk 0:03:04.8]} 9... b6 {[%clk 0:02:55.3]}
10. Qe2 {[%clk 0:02:41.5]} 10... Bb7 {[%clk 0:02:53.8]} 11. Rfd1 {[%clk
0:02:41.9]} 11... Re8 {[%clk 0:02:51.4]} 12. dxc5 {[%clk 0:02:38.7]} 12... bxc5
{[%clk 0:02:48.8]} 13. Ba6 {[%clk 0:02:38.7]} 13... Bxa6 {[%clk 0:02:39.6]} 14.
Qxa6 {[%clk 0:02:40.6]} 14... Nb6 {[%clk 0:02:40.7]} 15. b3 {[%clk 0:02:29]}
15... Qc8 {[%clk 0:02:39.3]} 16. Qxc8 {[%clk 0:02:27.7]} 16... Raxc8 {[%clk
0:02:31.7]} 17. Rac1 {[%clk 0:02:29]} 17... h6 {[%clk 0:02:28.7]} 18. Nb5 {[%clk
0:02:14.4]} 18... a6 {[%clk 0:02:19.6]} 19. Nd6 {[%clk 0:02:13.5]} 19... Bxd6
{[%clk 0:02:19.5]} 20. Bxd6 {[%clk 0:02:15]} 20... Nbd7 {[%clk 0:02:19.2]} 21.
Kf1 {[%clk 0:02:14.1]} 21... Rc6 {[%clk 0:02:19.4]} 22. Bf4 {[%clk 0:02:10.6]}
22... a5 {[%clk 0:02:13.6]} 23. Nd4 {[%clk 0:02:07.3]} 23... Ra6 {[%clk
0:02:13]} 24. Nb5 {[%clk 0:02:07]} 24... Rc8 {[%clk 0:02:08]} 25. Nc7 {[%clk
0:02:06.9]} 25... Ra7 {[%clk 0:01:53.8]} 26. Nxd5 {[%clk 0:02:06.4]} 26... a4
{[%clk 0:01:54.7]} 27. Ne7+ {[%clk 0:02:06]} 1-0

[Event "*** Titled Tuesday Blitz"]
[Site "Chess.com"]
[Date "2018.09.04"]
[Round "1"]
[White "Schachmalanders"]
[Black "Aryangholami"]
[Result "0-1"]
[WhiteElo "2393"]
[BlackElo "2731"]
[TimeControl "180+2"]
[EndTime "13:39:25 PDT"]
[Termination "Aryangholami won by resignation"]

1. e4 {[%clk 0:02:56.4]} 1... c5 {[%clk 0:02:59.5]} 2. c3 {[%clk 0:02:55.9]}
2... Nf6 {[%clk 0:02:58.5]} 3. e5 {[%clk 0:02:56.4]} 3... Nd5 {[%clk 0:02:59.2]}
4. d4 {[%clk 0:02:56.7]} 4... cxd4 {[%clk 0:03:01.1]} 5. Nf3 {[%clk 0:02:57.5]}
5... e6 {[%clk 0:03:02.2]} 6. cxd4 {[%clk 0:02:57.6]} 6... d6 {[%clk 0:03:03.4]}
7. Nc3 {[%clk 0:02:57.1]} 7... Nxc3 {[%clk 0:03:03.8]} 8. bxc3 {[%clk
0:02:57.9]} 8... Qc7 {[%clk 0:03:05.2]} 9. Bd2 {[%clk 0:02:56.5]} 9... Nd7
{[%clk 0:03:06.2]} 10. exd6 {[%clk 0:02:56]} 10... Bxd6 {[%clk 0:03:04.7]} 11.
Bd3 {[%clk 0:02:56.7]} 11... O-O {[%clk 0:03:02.5]} 12. O-O {[%clk 0:02:57.2]}
12... b6 {[%clk 0:03:01.2]} 13. Re1 {[%clk 0:02:49.3]} 13... Bb7 {[%clk
0:03:01.4]} 14. Ne5 {[%clk 0:02:02.8]} 14... Nxe5 {[%clk 0:02:28.6]} 15. dxe5
{[%clk 0:02:02.1]} 15... Bc5 {[%clk 0:02:29.4]} 16. Bg5 {[%clk 0:01:55]} 16...
Be7 {[%clk 0:02:26.3]} 17. Bxe7 {[%clk 0:01:36.1]} 17... Qxe7 {[%clk 0:02:28.2]}
18. Re3 {[%clk 0:01:37.3]} 18... Rfd8 {[%clk 0:02:26.1]} 19. Qh5 {[%clk
0:01:35.2]} 19... g6 {[%clk 0:02:20.9]} 20. Qh6 {[%clk 0:01:36.2]} 20... Qf8
{[%clk 0:02:18.5]} 21. Qh4 {[%clk 0:01:37]} 21... Rac8 {[%clk 0:02:13.1]} 22. f4
{[%clk 0:01:30.4]} 22... Qc5 {[%clk 0:02:09.1]} 23. Re1 {[%clk 0:01:28.5]} 23...
Rxd3 {[%clk 0:02:08.9]} 0-1

[Event "*** Titled Tuesday Blitz"]
[Site "Chess.com"]
[Date "2018.09.04"]
[Round "1"]
[White "ahmadzada13"]
[Black "AlexZambrano"]
[Result "1-0"]
[WhiteElo "2623"]
[BlackElo "2290"]
[TimeControl "180+2"]
[EndTime "13:39:29 PDT"]
[Termination "ahmadzada13 won by resignation"]

1. e4 {[%clk 0:03:01.9]} 1... e6 {[%clk 0:02:59.5]} 2. d4 {[%clk 0:03:02.5]}
2... d5 {[%clk 0:03:00.7]} 3. Nd2 {[%clk 0:03:04.1]} 3... Nf6 {[%clk 0:03:01.1]}
4. e5 {[%clk 0:03:04.8]} 4... Nfd7 {[%clk 0:03:01.5]} 5. Bd3 {[%clk 0:03:06.2]}
5... c5 {[%clk 0:03:03.1]} 6. c3 {[%clk 0:03:04.1]} 6... Nc6 {[%clk 0:03:04.2]}
7. Ne2 {[%clk 0:03:03.5]} 7... cxd4 {[%clk 0:03:05.6]} 8. cxd4 {[%clk
0:02:49.1]} 8... f6 {[%clk 0:03:06.2]} 9. exf6 {[%clk 0:02:50.3]} 9... Qxf6
{[%clk 0:03:06.9]} 10. Nf3 {[%clk 0:02:47.9]} 10... h6 {[%clk 0:03:08.2]} 11.
O-O {[%clk 0:02:45.2]} 11... Bd6 {[%clk 0:03:09.2]} 12. Ng3 {[%clk 0:02:44.8]}
12... O-O {[%clk 0:03:10]} 13. Re1 {[%clk 0:02:42.2]} 13... Rd8 {[%clk
0:03:10.9]} 14. Be3 {[%clk 0:02:37.4]} 14... Nf8 {[%clk 0:03:11.8]} 15. Nh5
{[%clk 0:02:28.8]} 15... Qf7 {[%clk 0:03:11.2]} 16. Ne5 {[%clk 0:02:29.1]} 16...
Nxe5 {[%clk 0:03:08.9]} 17. dxe5 {[%clk 0:02:29.6]} 17... Bxe5 {[%clk
0:03:10.2]} 18. Qg4 {[%clk 0:02:20.8]} 18... Kh8 {[%clk 0:02:52.8]} 19. Bg5
{[%clk 0:02:13.7]} 19... hxg5 {[%clk 0:02:28]} 20. Rxe5 {[%clk 0:02:11.3]} 20...
Bd7 {[%clk 0:02:15.7]} 21. Qh3 {[%clk 0:02:10.1]} 21... Kg8 {[%clk 0:02:16.4]}
22. Rxg5 {[%clk 0:02:06.1]} 22... e5 {[%clk 0:02:14.2]} 23. Qh4 {[%clk
0:01:59.6]} 23... e4 {[%clk 0:02:14.5]} 24. Rxg7+ {[%clk 0:01:58.1]} 24... Qxg7
{[%clk 0:02:13.5]} 25. Nxg7 {[%clk 0:01:59.1]} 25... Kxg7 {[%clk 0:02:14.8]} 26.
Qg5+ {[%clk 0:01:57.5]} 26... Ng6 {[%clk 0:02:15.8]} 27. Be2 {[%clk 0:01:54.8]}
27... Be6 {[%clk 0:02:11.4]} 28. h4 {[%clk 0:01:53]} 1-0

[Event "*** Titled Tuesday Blitz"]
[Site "Chess.com"]
[Date "2018.09.04"]
[Round "1"]
[White "ZatonskihAnna"]
[Black "SaraciNderim"]
[Result "0-1"]
[WhiteElo "2112"]
[BlackElo "2513"]
[TimeControl "180+2"]
[EndTime "13:40:03 PDT"]
[Termination "SaraciNderim won by resignation"]

1. e4 {[%clk 0:03:00.8]} 1... c5 {[%clk 0:02:59.7]} 2. g3 {[%clk 0:03:00]} 2...
g6 {[%clk 0:03:00.3]} 3. Bg2 {[%clk 0:03:01.2]} 3... Bg7 {[%clk 0:03:01.6]} 4.
d3 {[%clk 0:03:02.8]} 4... d6 {[%clk 0:03:00.7]} 5. f4 {[%clk 0:03:04.3]} 5...
Nc6 {[%clk 0:03:00.8]} 6. Nf3 {[%clk 0:03:05.7]} 6... h5 {[%clk 0:03:02]} 7. h3
{[%clk 0:03:04.6]} 7... Nd4 {[%clk 0:03:00.7]} 8. O-O {[%clk 0:03:02.2]} 8...
Rb8 {[%clk 0:03:01.9]} 9. Ng5 {[%clk 0:02:56.4]} 9... b5 {[%clk 0:03:01]} 10. c3
{[%clk 0:02:39.3]} 10... Ne6 {[%clk 0:02:28.7]} 11. Nf3 {[%clk 0:02:39.6]} 11...
Nc7 {[%clk 0:02:17]} 12. d4 {[%clk 0:02:35.4]} 12... b4 {[%clk 0:02:17.3]} 13.
dxc5 {[%clk 0:02:25.6]} 13... dxc5 {[%clk 0:02:11.2]} 14. Qxd8+ {[%clk
0:02:23.6]} 14... Kxd8 {[%clk 0:02:13.1]} 15. Rd1+ {[%clk 0:02:24]} 15... Ke8
{[%clk 0:02:13.4]} 16. Be3 {[%clk 0:02:25.4]} 16... bxc3 {[%clk 0:02:12.2]} 17.
bxc3 {[%clk 0:02:18]} 17... Na6 {[%clk 0:02:09.5]} 18. e5 {[%clk 0:02:12.3]}
18... Nh6 {[%clk 0:02:09.6]} 19. Ng5 {[%clk 0:02:04.3]} 19... Bb7 {[%clk
0:02:03.9]} 20. Bf1 {[%clk 0:02:00.8]} 20... Nf5 {[%clk 0:01:54.3]} 21. Bf2
{[%clk 0:02:01.3]} 21... Nc7 {[%clk 0:01:43]} 22. Bxc5 {[%clk 0:01:54.8]} 22...
Nxg3 {[%clk 0:01:43.7]} 23. Bxa7 {[%clk 0:01:54.3]} 23... Ra8 {[%clk 0:01:43]}
24. Bb6 {[%clk 0:01:55]} 24... Nxf1 {[%clk 0:01:40.5]} 25. Bxc7 {[%clk 0:01:51]}
25... Ne3 {[%clk 0:01:41.2]} 26. Rd2 {[%clk 0:01:47.1]} 26... Nd5 {[%clk
0:01:42.2]} 27. Rd4 {[%clk 0:01:38.1]} 27... Nxc7 {[%clk 0:01:40.5]} 0-1

[Event "*** Titled Tuesday Blitz"]
[Site "Chess.com"]
[Date "2018.09.04"]
[Round "1"]
[White "Sven_Tica"]
[Black "ItalianMachine"]
[Result "1-0"]
[WhiteElo "2656"]
[BlackElo "2317"]
[TimeControl "180+2"]
[EndTime "13:40:09 PDT"]
[Termination "Sven_Tica won by resignation"]

1. d4 {[%clk 0:03:01.7]} 1... Nf6 {[%clk 0:02:54.7]} 2. c4 {[%clk 0:03:03]} 2...
g6 {[%clk 0:02:53]} 3. Nc3 {[%clk 0:03:03.9]} 3... Bg7 {[%clk 0:02:53.4]} 4. Bf4
{[%clk 0:03:04.6]} 4... O-O {[%clk 0:02:38.1]} 5. e3 {[%clk 0:03:05.6]} 5... d6
{[%clk 0:02:35.9]} 6. h3 {[%clk 0:03:06.7]} 6... c5 {[%clk 0:02:25.3]} 7. Nf3
{[%clk 0:03:05.3]} 7... Nc6 {[%clk 0:02:24.6]} 8. d5 {[%clk 0:03:05.2]} 8... Nb8
{[%clk 0:02:25]} 9. Be2 {[%clk 0:03:06.2]} 9... Nfd7 {[%clk 0:02:10.8]} 10. O-O
{[%clk 0:03:06.6]} 10... Na6 {[%clk 0:02:11.3]} 11. Bh2 {[%clk 0:03:05.2]} 11...
Nc7 {[%clk 0:02:11.6]} 12. e4 {[%clk 0:03:05.9]} 12... Rb8 {[%clk 0:02:10.7]}
13. Qd2 {[%clk 0:03:04.6]} 13... a6 {[%clk 0:01:42.9]} 14. a4 {[%clk 0:03:04.2]}
14... b5 {[%clk 0:01:15.3]} 15. axb5 {[%clk 0:02:59.2]} 15... axb5 {[%clk
0:01:16.4]} 16. cxb5 {[%clk 0:02:57]} 16... h6 {[%clk 0:00:27.8]} 17. Rfe1
{[%clk 0:02:51.1]} 17... Kh7 {[%clk 0:00:28.8]} 18. Bf1 {[%clk 0:02:50.5]} 18...
Ne5 {[%clk 0:00:30]} 19. Nxe5 {[%clk 0:02:48.9]} 19... dxe5 {[%clk 0:00:31.3]}
20. Bc4 {[%clk 0:02:46.6]} 20... Qd6 {[%clk 0:00:32.3]} 21. Ra5 {[%clk
0:02:42.9]} 21... Bd7 {[%clk 0:00:33.4]} 22. Rea1 {[%clk 0:02:43.2]} 22... Rb7
{[%clk 0:00:34.6]} 23. Ra7 {[%clk 0:02:36.7]} 23... Rfb8 {[%clk 0:00:35.4]} 24.
Rxb7 {[%clk 0:02:37.2]} 24... Rxb7 {[%clk 0:00:36.7]} 25. Qe2 {[%clk 0:02:38.8]}
25... f5 {[%clk 0:00:36.6]} 26. exf5 {[%clk 0:02:38.4]} 26... gxf5 {[%clk
0:00:38.5]} 27. Re1 {[%clk 0:02:37.9]} 27... f4 {[%clk 0:00:39.2]} 28. Ne4
{[%clk 0:02:37.9]} 28... Qg6 {[%clk 0:00:40.1]} 29. Nxc5 {[%clk 0:02:29.3]} 1-0

[Event "*** Titled Tuesday Blitz"]
[Site "Chess.com"]
[Date "2018.09.04"]
[Round "1"]
[White "VladDobrov"]
[Black "r31415"]
[Result "1-0"]
[WhiteElo "2716"]
[BlackElo "2369"]
[TimeControl "180+2"]
[EndTime "13:40:47 PDT"]
[Termination "VladDobrov won by resignation"]

1. d4 {[%clk 0:03:01.9]} 1... d6 {[%clk 0:02:58.8]} 2. Nf3 {[%clk 0:03:01.8]}
2... f5 {[%clk 0:02:58.9]} 3. Nc3 {[%clk 0:03:01.6]} 3... Nf6 {[%clk 0:02:59.8]}
4. Bg5 {[%clk 0:03:01.3]} 4... g6 {[%clk 0:02:46]} 5. Bxf6 {[%clk 0:02:51.5]}
5... exf6 {[%clk 0:02:46.5]} 6. e3 {[%clk 0:02:46.8]} 6... Be6 {[%clk 0:02:45]}
7. d5 {[%clk 0:02:44.2]} 7... Bf7 {[%clk 0:02:45.9]} 8. h4 {[%clk 0:02:43.1]}
8... a6 {[%clk 0:02:35.8]} 9. h5 {[%clk 0:02:40.7]} 9... Bg7 {[%clk 0:02:26.8]}
10. h6 {[%clk 0:02:38.4]} 10... Bf8 {[%clk 0:02:27.4]} 11. Nd4 {[%clk
0:02:40.1]} 11... Nd7 {[%clk 0:02:22.7]} 12. Be2 {[%clk 0:02:15]} 12... Nc5
{[%clk 0:02:13.6]} 13. Bf3 {[%clk 0:02:11.6]} 13... Qd7 {[%clk 0:02:14.1]} 14.
a4 {[%clk 0:02:05.7]} 14... Rb8 {[%clk 0:02:04.9]} 15. b4 {[%clk 0:02:05.2]}
15... Ne4 {[%clk 0:02:04.2]} 16. Nxe4 {[%clk 0:02:05.8]} 16... fxe4 {[%clk
0:02:05.1]} 17. Bxe4 {[%clk 0:02:07.7]} 17... Qe7 {[%clk 0:01:53.9]} 18. Bf3
{[%clk 0:02:07.2]} 18... Qe5 {[%clk 0:01:41.5]} 19. c4 {[%clk 0:02:02.1]} 19...
Qg5 {[%clk 0:01:40.9]} 20. Bg4 {[%clk 0:01:19.9]} 20... Bxh6 {[%clk 0:01:34.6]}
21. f4 {[%clk 0:01:19.7]} 21... Qxg4 {[%clk 0:01:07.2]} 22. Qxg4 {[%clk
0:01:19.3]} 22... f5 {[%clk 0:01:09.1]} 23. Qh4 {[%clk 0:01:12.3]} 23... Bg7
{[%clk 0:01:10.1]} 24. O-O-O {[%clk 0:01:10.3]} 24... h6 {[%clk 0:01:06.2]} 25.
g4 {[%clk 0:01:10.5]} 25... fxg4 {[%clk 0:01:03.2]} 26. Qxg4 {[%clk 0:01:12.4]}
26... O-O {[%clk 0:01:04.7]} 27. Ne6 {[%clk 0:01:11.5]} 1-0

[Event "*** Titled Tuesday Blitz"]
[Site "Chess.com"]
[Date "2018.09.04"]
[Round "1"]
[White "GeorgMeier"]
[Black "amiralfio"]
[Result "0-1"]
[WhiteElo "2824"]
[BlackElo "2453"]
[TimeControl "180+2"]
[EndTime "13:40:52 PDT"]
[Termination "amiralfio won by checkmate"]

1. Nf3 {[%clk 0:03:01.9]} 1... c5 {[%clk 0:02:57.2]} 2. g3 {[%clk 0:03:03.3]}
2... Nc6 {[%clk 0:02:56.1]} 3. Bg2 {[%clk 0:03:04.7]} 3... e5 {[%clk 0:02:57.6]}
4. d3 {[%clk 0:03:03.9]} 4... g6 {[%clk 0:02:58.4]} 5. c4 {[%clk 0:03:05]} 5...
Bg7 {[%clk 0:02:59.4]} 6. Nc3 {[%clk 0:03:06.5]} 6... d6 {[%clk 0:03:00.9]} 7.
O-O {[%clk 0:03:07.9]} 7... Nge7 {[%clk 0:03:02]} 8. a3 {[%clk 0:03:09.1]} 8...
O-O {[%clk 0:02:59.2]} 9. Rb1 {[%clk 0:03:10.1]} 9... a5 {[%clk 0:02:59.8]} 10.
Ne1 {[%clk 0:03:07.6]} 10... f5 {[%clk 0:02:59.8]} 11. Nc2 {[%clk 0:03:08.7]}
11... Be6 {[%clk 0:02:42.6]} 12. b4 {[%clk 0:03:09.4]} 12... axb4 {[%clk
0:02:43]} 13. axb4 {[%clk 0:03:11.3]} 13... Rb8 {[%clk 0:02:05.3]} 14. Nd5
{[%clk 0:03:08.2]} 14... Bxd5 {[%clk 0:01:58.8]} 15. cxd5 {[%clk 0:03:09.2]}
15... Nxb4 {[%clk 0:01:53]} 16. Nxb4 {[%clk 0:03:09.7]} 16... cxb4 {[%clk
0:01:53.5]} 17. Rxb4 {[%clk 0:03:11.6]} 17... Qa5 {[%clk 0:01:54.6]} 18. Qb3
{[%clk 0:03:12.3]} 18... b5 {[%clk 0:01:52.9]} 19. Bg5 {[%clk 0:03:11.9]} 19...
Bf6 {[%clk 0:01:43.8]} 20. Be3 {[%clk 0:03:11]} 20... Rb7 {[%clk 0:01:28]} 21.
Rb1 {[%clk 0:03:10.1]} 21... Rfb8 {[%clk 0:01:28.3]} 22. h4 {[%clk 0:02:56.1]}
22... Kg7 {[%clk 0:01:27.6]} 23. Bf3 {[%clk 0:02:55.3]} 23... h6 {[%clk
0:01:28.3]} 24. Kg2 {[%clk 0:02:56.6]} 24... g5 {[%clk 0:01:25.3]} 25. hxg5
{[%clk 0:02:57.9]} 25... hxg5 {[%clk 0:01:26.6]} 26. g4 {[%clk 0:02:59.8]} 26...
e4 {[%clk 0:01:08.4]} 27. dxe4 {[%clk 0:02:58.8]} 27... f4 {[%clk 0:01:09.4]}
28. Bd2 {[%clk 0:02:57.8]} 28... Qa7 {[%clk 0:01:03.9]} 29. e5 {[%clk
0:02:55.4]} 29... Bxe5 {[%clk 0:01:03.8]} 30. Be4 {[%clk 0:02:56.7]} 30... Rh8
{[%clk 0:00:53.4]} 31. Rxb5 {[%clk 0:02:55.9]} 31... Rxb5 {[%clk 0:00:39]} 32.
Qxb5 {[%clk 0:02:56.3]} 32... f3+ {[%clk 0:00:35.5]} 33. Kg1 {[%clk 0:02:43]}
33... Rh1+ {[%clk 0:00:27]} 34. Kxh1 {[%clk 0:02:39.6]} 34... Qxf2 {[%clk
0:00:27.5]} 35. Bxf3 {[%clk 0:02:26.7]} 35... Qh2# {[%clk 0:00:27.5]} 0-1